bitfinex/quotes_BTCUSD_20251015
["timestamp","ask_amount","ask_price","bid_price","bid_amount"]
[1760560023389,2.64322296,111620.0,111610.0,0.1004]
[1760560023591,2.97682056,111620.0,111610.0,0.1004]
[1760560024128,2.95194975,111620.0,111610.0,0.1004]
[1760560024368,2.95394975,111620.0,111610.0,0.1004]
[1760560024594,2.95494975,111620.0,111610.0,0.1004]
[1760560026413,3.01935726,111620.0,111610.0,0.1004]
[1760560026754,3.04631505,111620.0,111610.0,0.1004]
[1760560027311,2.95663297,111620.0,111610.0,0.10098396]
[1760560029701,2.54267121,111620.0,111610.0,0.10098396]
[1760560029911,2.30990604,111620.0,111610.0,0.28017937]
[1760560030143,2.56956438,111620.0,111610.0,0.28017937]
[1760560030344,2.90956438,111620.0,111610.0,0.10098396]
[1760560030553,2.65924646,111620.0,111610.0,0.10098396]
[1760560030704,2.99624646,111620.0,111610.0,0.10098396]
[1760560030899,2.99724646,111620.0,111610.0,0.10098396]
[1760560031575,2.99724646,111620.0,111610.0,0.28017937]
[1760560032540,2.96505587,111620.0,111610.0,0.10098396]
[1760560033158,2.99725307,111620.0,111610.0,0.10098396]
[1760560033364,2.99725307,111620.0,111610.0,0.28017937]
[1760560033585,2.96505587,111620.0,111610.0,0.28017937]
[1760560034052,2.31443372,111620.0,111610.0,0.28017937]
[1760560034262,2.68010708,111620.0,111610.0,0.10098396]
[1760560034472,2.68010708,111620.0,111610.0,0.28017937]
[1760560035090,2.85928643,111620.0,111610.0,0.10098396]
[1760560035502,3.2893369,111620.0,111610.0,0.10098396]
[1760560035716,3.39078367,111620.0,111610.0,0.09514984]
[1760560035921,3.39078367,111620.0,111610.0,0.04667999]
[1760560036126,3.46140299,111620.0,111610.0,0.04667999]
[1760560036366,3.18974448,111620.0,111610.0,0.04667999]
[1760560036574,0.51919541,111610.0,111600.0,0.0504]
[1760560036803,3.12349564,111610.0,111600.0,0.0504]
[1760560037037,3.14736645,111610.0,111600.0,0.0504]
[1760560038137,3.14936645,111610.0,111600.0,0.0504]
[1760560038322,3.18554873,111610.0,111600.0,0.0504]
[1760560038993,3.18654873,111610.0,111600.0,0.0504]
[1760560039195,3.20060053,111610.0,111600.0,0.0504]
[1760560039425,3.20060053,111610.0,111460.0,0.07643299]
[1760560039426,0.41864265,111570.0,111460.0,0.07643299]
[1760560039663,0.41864265,111570.0,111460.0,0.0717521]
[1760560039664,0.34896941,111490.0,111460.0,0.0717521]
[1760560039874,0.34896941,111490.0,111460.0,0.072253]
[1760560039875,2.27618576,111470.0,111460.0,0.072253]
[1760560040099,0.79004689,111470.0,111460.0,0.0005009]
[1760560040325,0.79004689,111470.0,111460.0,0.17993746]
[1760560040326,0.016771,111470.0,111460.0,0.17993746]
[1760560040532,1.541486,111490.0,111470.0,0.17942016]
[1760560040738,1.522224,111480.0,111470.0,0.17942016]
[1760560041003,0.0667172,111480.0,111470.0,0.17942016]
[1760560041222,0.0192637,111500.0,111490.0,0.17938828]
[1760560041436,0.30607183,111500.0,111480.0,0.17940359]
[1760560041659,0.73575391,111500.0,111470.0,0.18839118]
[1760560041875,0.14595866,111500.0,111490.0,0.17938828]
[1760560042086,0.14595866,111500.0,111490.0,0.17838828]
[1760560042087,0.01669496,111500.0,111490.0,0.17838828]
[1760560042301,0.35669496,111510.0,111490.0,0.17838828]
[1760560042515,0.49669496,111510.0,111500.0,0.17837219]
[1760560042743,2.03818266,111510.0,111500.0,0.18480238]
[1760560042962,2.03818266,111510.0,111500.0,0.18380238]
[1760560043171,0.15669496,111510.0,111500.0,0.18380238]
[1760560043378,0.5,111520.0,111510.0,0.17935611]
[1760560043602,1.95214,111520.0,111510.0,0.17935611]
[1760560043818,1.95214,111520.0,111510.0,0.17985701]
[1760560044044,2.13148002,111520.0,111510.0,0.0005009]
[1760560044256,2.2211621,111520.0,111510.0,0.0005009]
[1760560044462,1.95214,111520.0,111510.0,0.17985701]
[1760560044639,0.45,111520.0,111510.0,0.19779262]
[1760560044875,0.45,111520.0,111510.0,0.17985701]
[1760560045355,0.451,111520.0,111510.0,0.17985701]
[1760560045539,0.45,111520.0,111510.0,0.17985701]
[1760560046561,0.62934002,111520.0,111510.0,0.17985701]
[1760560046968,0.45,111520.0,111510.0,0.17985701]
[1760560048811,0.11,111520.0,111510.0,0.18570212]
[1760560049472,1.855947,111540.0,111530.0,0.17932394]
[1760560049652,1.965947,111540.0,111530.0,0.17932394]
[1760560049859,1.965947,111540.0,111530.0,0.18399919]
[1760560050063,1.95214,111540.0,111530.0,0.18399919]
[1760560050274,1.61214,111540.0,111530.0,0.18399919]
[1760560050936,0.11,111540.0,111530.0,0.18399919]
[1760560051149,0.111,111540.0,111530.0,0.18399919]
[1760560051354,0.11,111540.0,111530.0,0.18399919]
[1760560064367,0.01919812,111550.0,111540.0,0.17930787]
[1760560064491,0.12835701,111550.0,111540.0,0.17930787]
[1760560064900,0.12,111550.0,111540.0,0.17930787]
[1760560065078,0.05633154,111570.0,111560.0,0.17927572]
[1760560065079,2.04548021,111570.0,111560.0,0.17927572]
[1760560065287,1.69409975,111570.0,111560.0,0.17927572]
[1760560065488,1.65642797,111570.0,111560.0,0.17927572]
[1760560066225,1.65642797,111570.0,111560.0,0.17936527]
[1760560066796,1.65742797,111570.0,111560.0,0.17936527]
[1760560067057,1.65842797,111570.0,111560.0,0.17936527]
[1760560068934,2.65669763,111570.0,111560.0,0.17936527]
[1760560069123,2.94753865,111570.0,111560.0,8.955e-05]
[1760560069366,3.02159203,111570.0,111560.0,8.955e-05]
[1760560069550,2.98940258,111570.0,111560.0,8.955e-05]
[1760560069828,3.07908466,111570.0,111560.0,8.955e-05]
[1760560070020,3.06698276,111570.0,111560.0,8.955e-05]
[1760560070142,3.13136167,111570.0,111560.0,0.00284019]
[1760560070350,0.51930787,111540.0,111530.0,0.18828661]
[1760560070573,2.94918818,111540.0,111530.0,0.17982484]
[1760560070784,3.03887026,111540.0,111530.0,0.0005009]
[1760560070985,2.97495149,111540.0,111530.0,0.0005009]
[1760560071197,3.03958132,111540.0,111530.0,0.0005009]
[1760560071403,3.04291529,111540.0,111530.0,0.0005009]
[1760560071789,3.01074941,111540.0,111530.0,0.0005009]
[1760560071966,3.00741544,111540.0,111530.0,0.0005009]
[1760560072207,3.09709752,111540.0,111530.0,0.0005009]
[1760560072619,3.00741544,111540.0,111530.0,0.0005009]
[1760560072936,3.00941544,111540.0,111530.0,0.0005009]
[1760560075957,3.00941544,111540.0,111530.0,0.00225451]
[1760560076183,2.28008751,111540.0,111530.0,0.00225451]
[1760560076392,2.97531259,111540.0,111530.0,0.00225451]
[1760560076579,3.06499467,111540.0,111530.0,0.00225451]
[1760560077525,2.97531259,111540.0,111530.0,0.00225451]
[1760560078285,2.97535378,111540.0,111530.0,0.18157845]
[1760560078499,2.97535378,111540.0,111530.0,0.00225451]
[1760560078910,2.97535378,111540.0,111530.0,0.18157845]
[1760560079126,2.82823124,111540.0,111530.0,0.18157845]
[1760560079288,2.05065449,111540.0,111530.0,0.18157845]
[1760560079504,2.54586656,111540.0,111530.0,0.18157845]
[1760560080262,2.57262591,111540.0,111530.0,0.18157845]
[1760560080465,2.51368123,111540.0,111530.0,0.18157845]
[1760560081255,2.49703552,111540.0,111530.0,0.18157845]
[1760560081456,2.02595625,111540.0,111530.0,0.18157845]
[1760560081607,1.66181571,111540.0,111530.0,0.18157845]
[1760560081812,0.01036328,111540.0,111530.0,0.18157845]
[1760560082011,0.002,111540.0,111530.0,0.18157845]
[1760560082351,2.38885539,111560.0,111550.0,0.17929179]
[1760560082601,2.55399761,111560.0,111550.0,0.17829179]
[1760560082802,2.55399761,111560.0,111550.0,0.1774135]
[1760560083482,2.52181228,111560.0,111550.0,0.1774135]
[1760560083919,2.52281228,111560.0,111550.0,0.1774135]
[1760560085207,2.52381228,111560.0,111550.0,0.1774135]
[1760560085405,2.5070508,111560.0,111550.0,0.1774135]
[1760560086243,2.55703637,111560.0,111550.0,0.1774135]
[1760560088217,2.55703637,111560.0,111550.0,0.17799794]
[1760560089567,1.99252074,111560.0,111550.0,0.17799794]
[1760560089770,2.46360001,111560.0,111550.0,0.17799794]
[1760560091369,1.99252074,111560.0,111550.0,0.17799794]
[1760560091564,2.46360001,111560.0,111550.0,0.17799794]
[1760560093126,2.45521927,111560.0,111550.0,0.17799794]
[1760560096462,2.63449499,111560.0,111550.0,0.17799794]
[1760560097250,2.45521927,111560.0,111550.0,0.17799794]
[1760560100571,2.63449499,111560.0,111550.0,0.17799794]
[1760560104352,2.45521927,111560.0,111550.0,0.17799794]
[1760560104891,2.63449499,111560.0,111550.0,0.17799794]
[1760560106870,2.45521927,111560.0,111550.0,0.17799794]
[1760560107075,1.98414,111560.0,111550.0,0.17799794]
[1760560107224,2.45521927,111560.0,111550.0,0.17799794]
[1760560108234,2.63449499,111560.0,111550.0,0.17799794]
[1760560108615,2.6594912,111560.0,111550.0,0.17799794]
[1760560109027,2.63449499,111560.0,111550.0,0.17799794]
[1760560109250,2.16341572,111560.0,111550.0,0.17799794]
[1760560109454,2.18278982,111560.0,111550.0,0.17799794]
[1760560109661,3.01160222,111560.0,111550.0,0.17799794]
[1760560112532,2.18278982,111560.0,111550.0,0.17799794]
[1760560112658,3.01160222,111560.0,111550.0,0.17799794]
[1760560114337,3.01160222,111560.0,111550.0,0.00058444]
[1760560114338,3.94117538,111560.0,111550.0,0.00058444]
[1760560114546,4.04829884,111560.0,111550.0,0.00058444]
[1760560114938,4.09654766,111560.0,111550.0,0.00058444]
[1760560115139,4.04830176,111560.0,111550.0,0.00058444]
[1760560115359,4.04630176,111560.0,111550.0,0.00058444]
[1760560115762,4.04730176,111560.0,111550.0,0.00058444]
[1760560116393,4.87611416,111560.0,111550.0,0.00058444]
[1760560116891,4.92436298,111560.0,111550.0,0.00058444]
[1760560117141,4.92536298,111560.0,111550.0,0.00058444]
[1760560117314,4.87511416,111560.0,111550.0,0.00058444]
[1760560117677,2.38967696,111560.0,111550.0,0.00058444]
[1760560118100,4.87611416,111560.0,111550.0,0.00058444]
[1760560118511,4.87811416,111560.0,111550.0,0.00058444]
[1760560120061,3.63024256,111560.0,111550.0,0.00058444]
[1760560120960,4.04464876,111560.0,111550.0,0.00058444]
[1760560121340,4.04930176,111560.0,111550.0,0.00058444]
[1760560122748,2.39167696,111560.0,111550.0,0.00058444]
[1760560123073,4.04930176,111560.0,111550.0,0.00058444]
[1760560123898,4.80259719,111560.0,111550.0,0.00058444]
[1760560124123,4.79794419,111560.0,111550.0,0.00058444]
[1760560124308,3.55472559,111560.0,111550.0,0.00058444]
[1760560126836,4.79794419,111560.0,111550.0,0.00058444]
[1760560127985,4.80267662,111560.0,111550.0,0.00058444]
[1760560128200,2.47203635,111540.0,111530.0,0.0005009]
[1760560128399,2.62665716,111540.0,111530.0,0.0005009]
[1760560128637,4.72186512,111540.0,111530.0,0.0005009]
[1760560129060,4.75408931,111540.0,111530.0,0.0005009]
[1760560129469,2.26865211,111540.0,111530.0,0.0005009]
[1760560129675,4.84477139,111540.0,111530.0,0.0005009]
[1760560129894,4.84577139,111540.0,111530.0,0.0005009]
[1760560130092,4.84477139,111540.0,111530.0,0.0005009]
[1760560130522,4.56373679,111540.0,111530.0,0.0005009]
[1760560130723,4.74304466,111540.0,111530.0,0.0005009]
[1760560131697,4.73463025,111540.0,111530.0,0.0005009]
[1760560131900,4.74501136,111540.0,111530.0,0.0005009]
[1760560132102,4.74494129,111540.0,111530.0,0.0005009]
[1760560132554,4.78112357,111540.0,111530.0,0.0005009]
[1760560132763,4.77624095,111540.0,111530.0,0.0005009]
[1760560133519,3.40715799,111540.0,111530.0,0.0005009]
[1760560133753,3.38886365,111540.0,111530.0,0.0005009]
[1760560134188,3.38886365,111540.0,111530.0,0.00167002]
[1760560134854,3.38886136,111540.0,111530.0,0.00167002]
[1760560135086,3.38048254,111540.0,111530.0,0.00167002]
[1760560135433,3.0718028,111540.0,111530.0,0.00167002]
[1760560135663,2.8658198,111540.0,111530.0,0.00167002]
[1760560135803,1.6236012,111540.0,111530.0,0.00167002]
[1760560136009,2.8678198,111540.0,111530.0,0.00167002]
[1760560136296,2.95750188,111540.0,111530.0,0.00167002]
[1760560136492,2.95750039,111540.0,111530.0,0.00167002]
[1760560136697,2.86781831,111540.0,111530.0,0.18099396]
[1760560136874,2.86781831,111540.0,111530.0,0.00167002]
[1760560137600,3.20781831,111540.0,111530.0,0.00167002]
[1760560138411,3.21620121,111540.0,111530.0,0.00167002]
[1760560138948,3.25030406,111540.0,111530.0,0.00167002]
[1760560139149,3.33998614,111540.0,111530.0,0.00167002]
[1760560139385,4.62428676,111540.0,111530.0,0.00167002]
[1760560139776,4.62428676,111540.0,111480.0,0.25114575]
[1760560139777,1.7115632,111490.0,111480.0,0.25114911]
[1760560140100,1.46820068,111490.0,111480.0,0.25129929]
[1760560140288,2.76535768,111490.0,111480.0,0.00015018]
[1760560140494,2.85503974,111490.0,111480.0,0.17955455]
[1760560140694,2.62007225,111490.0,111480.0,0.17955455]
[1760560140898,2.79946053,111490.0,111480.0,0.00015018]
[1760560141103,2.79946053,111490.0,111480.0,0.17955455]
[1760560141451,2.52090855,111490.0,111480.0,0.17955455]
[1760560141813,2.49979119,111490.0,111480.0,0.17955455]
[1760560142158,2.68017947,111490.0,111480.0,0.17955455]
[1760560143481,2.76986155,111490.0,111480.0,0.00015018]
[1760560143698,2.78917154,111490.0,111480.0,0.00015018]
[1760560144326,2.80593309,111490.0,111480.0,0.17955455]
[1760560144527,2.80593309,111490.0,111480.0,0.00015018]
[1760560144897,2.80593292,111490.0,111480.0,0.00015018]
[1760560145094,2.82668752,111490.0,111480.0,0.00015018]
[1760560145670,2.82668752,111490.0,111480.0,0.00307457]
[1760560146088,2.82668752,111490.0,111480.0,0.18247894]
[1760560146302,2.71625084,111490.0,111480.0,0.18247894]
[1760560146549,2.71625084,111490.0,111480.0,0.00307457]
[1760560147391,2.73720279,111490.0,111480.0,0.00307457]
[1760560148215,2.39720279,111490.0,111480.0,0.00307457]
[1760560149000,2.3971828,111490.0,111480.0,0.00307457]
[1760560150297,2.7371828,111490.0,111480.0,0.00307457]
[1760560150522,2.71623085,111490.0,111480.0,0.18247894]
[1760560150690,2.71623085,111490.0,111480.0,0.00307457]
[1760560150937,2.71623085,111490.0,111480.0,0.18247894]
[1760560151147,2.71623085,111490.0,111480.0,0.00307457]
[1760560151525,2.80591293,111490.0,111480.0,0.00307457]
[1760560152214,1.98657726,111490.0,111480.0,0.18247894]
[1760560152453,2.71622596,111490.0,111480.0,0.00307457]
[1760560153793,2.73717791,111490.0,111480.0,0.00307457]
[1760560155119,2.73617791,111490.0,111480.0,0.00307457]
[1760560155333,2.74654866,111490.0,111480.0,0.00307457]
[1760560155535,2.86523964,111490.0,111480.0,0.00307457]
[1760560155940,2.89746383,111490.0,111480.0,0.00307457]
[1760560156141,2.14371222,111490.0,111480.0,0.00307457]
[1760560156351,2.87336092,111490.0,111480.0,0.00307457]
[1760560156527,2.87236092,111490.0,111480.0,0.00307457]
[1760560156756,2.87136092,111490.0,111480.0,0.00307457]
[1760560156969,2.87336092,111490.0,111480.0,0.00307457]
[1760560157386,2.92556783,111490.0,111480.0,0.00307457]
[1760560158014,2.90530957,111490.0,111480.0,0.00307457]
[1760560158228,2.90040358,111490.0,111480.0,1e-08]
[1760560158445,2.90040358,111490.0,111430.0,0.08112634]
[1760560158446,2.31662577,111440.0,111430.0,0.0721521]
[1760560158652,2.71232096,111440.0,111430.0,0.0726535]
[1760560158861,2.71232096,111440.0,111430.0,0.0009014]
[1760560159038,2.82296123,111440.0,111430.0,0.0009014]
[1760560159308,2.73327917,111440.0,111430.0,0.0009014]
[1760560159952,2.73327917,111440.0,111430.0,0.18038627]
[1760560160382,2.73327917,111440.0,111430.0,0.0009014]
[1760560160790,2.73427917,111440.0,111430.0,0.18038627]
[1760560161008,2.73427917,111440.0,111430.0,0.0009014]
[1760560161009,2.82396125,111440.0,111430.0,0.0009014]
[1760560161222,2.85296799,111440.0,111430.0,0.0009014]
[1760560161436,2.9092011,111440.0,111430.0,0.0009014]
[1760560161662,3.6388498,111440.0,111430.0,0.0009014]
[1760560161865,2.88542197,111440.0,111430.0,0.0009014]
[1760560162298,2.88642197,111440.0,111430.0,0.0009014]
[1760560162498,2.88542197,111440.0,111430.0,0.0009014]
[1760560162657,2.88442197,111440.0,111430.0,0.0009014]
[1760560163069,2.88642197,111440.0,111430.0,0.0009014]
[1760560163417,3.6067166,111440.0,111430.0,0.0009014]
[1760560163617,2.8770679,111440.0,111430.0,0.0009014]
[1760560163820,2.8790679,111440.0,111430.0,0.0009014]
[1760560164025,2.8790679,111440.0,111430.0,0.00382776]
[1760560164855,3.59669907,111440.0,111430.0,0.00382776]
[1760560165096,3.60503802,111440.0,111430.0,0.00382776]
[1760560165364,3.60503649,111440.0,111430.0,0.00382776]
[1760560165819,3.61910886,111440.0,111430.0,0.00382776]
[1760560166043,2.07012938,111440.0,111430.0,0.00382776]
[1760560166267,2.79144066,111440.0,111430.0,0.00382776]
[1760560167262,2.7997784,111440.0,111430.0,0.00382776]
[1760560167464,3.5294271,111440.0,111430.0,0.00382776]
[1760560167665,3.68337559,111440.0,111430.0,0.00382776]
[1760560168625,2.20630668,111420.0,111410.0,0.0004]
[1760560168753,2.3843734,111420.0,111410.0,0.0005503]
[1760560168958,2.40655445,111420.0,111410.0,0.0005503]
[1760560169162,2.41146322,111420.0,111410.0,0.0005503]
[1760560169363,2.50114528,111420.0,111410.0,0.0005503]
[1760560169766,2.50214528,111420.0,111410.0,0.0005503]
[1760560171180,2.50314528,111420.0,111410.0,0.0005503]
[1760560172203,2.49823651,111420.0,111410.0,0.0005503]
[1760560173762,2.84239856,111420.0,111410.0,0.0005503]
[1760560173965,1.81672245,111380.0,111370.0,8e-05]
[1760560174173,2.79209972,111380.0,111370.0,0.00023036]
[1760560174371,2.84774467,111380.0,111370.0,0.00023036]
[1760560174576,2.84767079,111380.0,111370.0,0.00023036]
[1760560175214,1.95338507,111380.0,111370.0,0.00023036]
[1760560175411,2.73809379,111380.0,111370.0,0.00023036]
[1760560175785,2.00944509,111380.0,111370.0,0.00023036]
[1760560175987,2.73909379,111380.0,111370.0,0.00023036]
[1760560176220,2.71511064,111380.0,111370.0,0.00023036]
[1760560176454,2.82877587,111380.0,111370.0,0.00023036]
[1760560176661,2.80479272,111380.0,111370.0,0.00023036]
[1760560177568,2.82877587,111380.0,111370.0,0.00023036]
[1760560177738,2.83368596,111380.0,111370.0,0.00023036]
[1760560178276,2.83268596,111380.0,111370.0,0.00023036]
[1760560178479,2.83368596,111380.0,111370.0,0.00023036]
[1760560178715,2.93451498,111380.0,111370.0,0.00023036]
[1760560178910,2.9216253,111380.0,111370.0,0.00023036]
[1760560179111,2.88575556,111380.0,111370.0,0.00023036]
[1760560179314,2.15610686,111380.0,111370.0,0.00023036]
[1760560179514,2.88475556,111380.0,111370.0,0.00023036]
[1760560179726,2.92093784,111380.0,111370.0,0.00023036]
[1760560179934,2.88898569,111380.0,111370.0,0.00374466]
[1760560180134,2.92093124,111380.0,111370.0,0.00374466]
[1760560180493,2.8471185,111380.0,111370.0,0.00374466]
[1760560180729,2.8461185,111380.0,111370.0,0.00374466]
[1760560180929,2.75843642,111380.0,111370.0,0.00374466]
[1760560181690,2.02878772,111380.0,111370.0,0.00374466]
[1760560181893,2.72225414,111380.0,111370.0,0.00374466]
[1760560182867,2.02878772,111380.0,111370.0,0.00374466]
[1760560182984,2.76642477,111380.0,111370.0,0.00374466]
[1760560183182,2.88572146,111380.0,111370.0,0.00374466]
[1760560183385,2.89063246,111380.0,111370.0,0.00374466]
[1760560184023,2.86101785,111380.0,111370.0,0.00374466]
[1760560184636,2.8872489,111380.0,111370.0,0.00374466]
[1760560184837,2.87217199,111380.0,111370.0,1e-08]
[1760560185044,2.92077801,111380.0,111370.0,1e-08]
[1760560185247,2.87276732,111380.0,111370.0,1e-08]
[1760560185476,3.65419593,111380.0,111370.0,1e-08]
[1760560185636,3.71746234,111380.0,111370.0,1e-08]
[1760560186005,2.25716494,111380.0,111370.0,1e-08]
[1760560186213,0.55576385,111370.0,111360.0,0.0004]
[1760560186423,3.61227508,111370.0,111360.0,0.00049003]
[1760560186624,3.67654149,111370.0,111360.0,1e-08]
[1760560186840,0.55577998,111360.0,111350.0,0.41509735]
[1760560187049,0.55577998,111360.0,111350.0,0.39350059]
[1760560187050,3.47808352,111360.0,111350.0,0.39350059]
[1760560187268,3.59891391,111360.0,111350.0,0.39350059]
[1760560187475,3.59949824,111360.0,111350.0,0.39350059]
[1760560188352,2.54646793,111320.0,111310.0,0.0004]
[1760560188562,2.54646793,111320.0,111310.0,0.00090121]
[1760560188563,2.58231707,111320.0,111310.0,0.00090121]
[1760560188775,2.79199913,111320.0,111310.0,0.00090121]
[1760560188990,2.83367674,111320.0,111310.0,0.00090121]
[1760560189234,2.88389593,111320.0,111310.0,0.00090121]
[1760560189451,2.89188989,111320.0,111310.0,0.00090121]
[1760560189664,0.17972681,111280.0,111270.0,2.0]
[1760560189878,2.72043623,111280.0,111270.0,2.00005015]
[1760560190102,2.04615633,111280.0,111270.0,2.00005015]
[1760560190311,1.81227456,111280.0,111270.0,2.00005015]
[1760560190553,1.81227456,111280.0,111270.0,2.17979311]
[1760560190760,1.77642542,111280.0,111270.0,2.17979311]
[1760560191166,0.47,111280.0,111270.0,2.17979311]
[1760560191372,0.47,111280.0,111270.0,2.00005015]
[1760560191373,1.07891712,111280.0,111270.0,2.00005015]
[1760560191581,2.50607412,111280.0,111270.0,2.17979311]
[1760560191790,2.50707412,111280.0,111270.0,2.17979311]
[1760560191993,1.77642542,111280.0,111270.0,2.17979311]
[1760560192186,1.767157,111280.0,111270.0,2.17979311]
[1760560192622,1.637157,111280.0,111270.0,2.17979311]
[1760560194563,2.3668057,111280.0,111270.0,2.17979311]
[1760560194763,1.637157,111280.0,111270.0,2.17979311]
[1760560195008,2.3668057,111280.0,111270.0,2.17979311]
[1760560195466,1.637157,111280.0,111270.0,2.17979311]
[1760560195692,1.297157,111280.0,111270.0,2.17979311]
[1760560196349,1.427157,111280.0,111270.0,2.17979311]
[1760560196568,2.16607412,111280.0,111270.0,2.17979311]
[1760560197002,1.43642542,111280.0,111270.0,2.17979311]
[1760560197210,2.16607412,111280.0,111270.0,2.18565713]
[1760560197848,1.43642542,111280.0,111270.0,2.18565713]
[1760560198059,2.16607412,111280.0,111270.0,2.18565713]
[1760560198283,1.43642542,111280.0,111270.0,2.18565713]
[1760560198495,2.16607412,111280.0,111270.0,2.18565713]
[1760560198707,0.86891712,111280.0,111270.0,2.18565713]
[1760560199345,0.13926842,111280.0,111270.0,2.18565713]
[1760560199544,0.86891712,111280.0,111270.0,2.18565713]
[1760560199823,1.20891712,111280.0,111270.0,2.18565713]
[1760560200434,1.27067212,111280.0,111270.0,2.18565713]
[1760560200663,2.74755593,111280.0,111270.0,2.00591417]
[1760560200804,2.77192653,111280.0,111270.0,2.00591417]
[1760560201007,2.59219972,111280.0,111270.0,2.18565713]
[1760560201232,1.81216757,111280.0,111270.0,2.18565713]
[1760560201549,2.37607412,111280.0,111270.0,2.18565713]
[1760560201747,2.48607412,111280.0,111270.0,2.00591417]
[1760560202080,2.70255231,111280.0,111270.0,2.00591417]
[1760560202281,2.79123439,111280.0,111270.0,2.00591417]
[1760560202491,2.79155688,111280.0,111270.0,2.00591417]
[1760560202698,2.84923735,111280.0,111270.0,2.00591417]
[1760560202925,2.88541963,111280.0,111270.0,2.00591417]
[1760560203170,2.91736457,111280.0,111270.0,2.00591417]
[1760560203390,3.67107708,111280.0,111270.0,2.00591417]
[1760560203617,3.10311723,111280.0,111270.0,1.58119137]
[1760560203836,3.11109854,111280.0,111270.0,1.58119137]
[1760560204053,3.11109854,111280.0,111270.0,1.55304505]
[1760560204286,3.11108954,111280.0,111270.0,1.12992464]
[1760560204556,1.8530984,111260.0,111250.0,0.0039]
[1760560204779,1.297157,111230.0,111220.0,8e-05]
[1760560204989,1.297157,111230.0,111220.0,0.18005395]
[1760560204990,2.24870917,111230.0,111220.0,0.18005395]
[1760560205199,1.75844536,111230.0,111220.0,0.18005395]
[1760560205407,2.42368311,111230.0,111220.0,0.00023018]
[1760560205612,1.95003194,111230.0,111220.0,0.00023018]
[1760560205834,2.44029678,111230.0,111220.0,0.00023018]
[1760560206044,2.52997886,111230.0,111220.0,0.00023018]
[1760560206258,2.54912243,111230.0,111220.0,0.00023018]
[1760560206485,2.56829672,111230.0,111220.0,0.00023018]
[1760560206956,2.09464555,111230.0,111220.0,0.00023018]
[1760560207183,2.47647906,111230.0,111220.0,0.00023018]
[1760560207430,2.04611789,111230.0,111220.0,0.00023018]
[1760560207640,2.49561631,111230.0,111220.0,0.00023018]
[1760560207856,2.02211433,111230.0,111220.0,0.00023018]
[1760560208072,1.98578286,111230.0,111220.0,0.00023018]
[1760560208301,2.5563495,111230.0,111220.0,0.00023018]
[1760560208508,2.57562079,111230.0,111220.0,0.00023018]
[1760560208725,2.10196962,111230.0,111220.0,0.00023018]
[1760560208930,2.57562079,111230.0,111220.0,0.00023018]
[1760560209152,1.98576771,111230.0,111220.0,0.00023018]
[1760560209570,2.45941888,111230.0,111220.0,0.00023018]
[1760560210018,2.27961128,111230.0,111220.0,0.00023018]
[1760560210235,2.44029678,111230.0,111220.0,0.00023018]
[1760560210665,2.54909904,111230.0,111220.0,0.00316483]
[1760560211331,2.26048918,111230.0,111220.0,0.1829886]
[1760560212414,2.2487102,111230.0,111220.0,0.1829886]
[1760560212642,1.77070255,111230.0,111220.0,0.1829886]
[1760560212866,2.42416132,111230.0,111220.0,0.1829886]
[1760560213079,2.44077571,111230.0,111220.0,0.00316483]
[1760560213299,2.53045779,111230.0,111220.0,0.00316483]
[1760560213509,2.54960384,111230.0,111220.0,0.00316483]
[1760560213726,2.55539328,111230.0,111220.0,0.00316483]
[1760560213949,2.59157556,111230.0,111220.0,0.00316483]
[1760560214161,2.42368211,111230.0,111220.0,0.00316483]
[1760560214379,2.89733328,111230.0,111220.0,0.00316483]
[1760560214589,2.92128957,111230.0,111220.0,0.00316483]
[1760560214800,2.94478428,111230.0,111220.0,0.00316483]
[1760560215007,2.94478428,111230.0,111200.0,2.0]
[1760560215008,6.33737156,111210.0,111200.0,2.0]
[1760560215246,0.17988546,111190.0,111170.0,0.18889971]
[1760560215465,5.174047,111170.0,111150.0,0.18886064]
[1760560215677,4.834047,111150.0,111140.0,0.17995158]
[1760560215905,0.34,111140.0,111130.0,0.18891196]
[1760560216138,0.02093596,111150.0,111140.0,0.17994175]
[1760560216374,5.174047,111160.0,111150.0,0.17993702]
[1760560216606,0.35411934,111160.0,111150.0,0.17993702]
[1760560216836,0.36426856,111160.0,111150.0,0.17993702]
[1760560217301,0.37626234,111160.0,111150.0,0.17993702]
[1760560217539,0.84991351,111160.0,111150.0,0.17993702]
[1760560217772,5.76895186,111160.0,111150.0,0.17993702]
[1760560217994,5.94887322,111160.0,111140.0,0.17994853]
[1760560218256,0.01432169,111150.0,111140.0,0.17994853]
[1760560218495,0.35432169,111150.0,111140.0,0.17995321]
[1760560218966,0.01432169,111150.0,111140.0,0.17995321]
[1760560219192,0.00014922,111160.0,111150.0,0.17993702]
[1760560219426,0.00014922,111160.0,111150.0,0.65358819]
[1760560219646,0.00014922,111160.0,111150.0,0.17993702]
[1760560220131,0.34,111150.0,111140.0,0.17995321]
[1760560220363,0.35452406,111150.0,111140.0,0.17995321]
[1760560220615,0.01452406,111150.0,111140.0,0.17995321]
[1760560221256,0.00014922,111160.0,111150.0,0.17993702]
[1760560221970,0.01426856,111160.0,111150.0,0.17993702]
[1760560222407,5.35831556,111160.0,111150.0,0.17993702]
[1760560222617,0.34,111150.0,111140.0,0.17995321]
[1760560222819,0.35452406,111150.0,111140.0,0.17995321]
[1760560223692,0.35452406,111150.0,111130.0,0.18891196]
[1760560223693,4.834047,111140.0,111130.0,0.18891196]
[1760560223920,4.84897585,111140.0,111130.0,0.18891196]
[1760560224121,0.01492885,111140.0,111130.0,0.1799694]
[1760560224238,0.09778685,111140.0,111130.0,0.1799694]
[1760560224446,5.174047,111130.0,111110.0,0.18895578]
[1760560224656,5.174047,111130.0,111100.0,0.0004]
[1760560224657,5.174047,111110.0,111100.0,0.0004]
[1760560224856,5.80340851,111110.0,111100.0,0.0004]
[1760560225054,5.34433822,111110.0,111100.0,0.180418]
[1760560225258,5.58987454,111110.0,111100.0,0.0004]
[1760560225445,6.12330733,111110.0,111100.0,0.0004]
[1760560225654,5.64965616,111110.0,111100.0,0.0004]
[1760560225873,5.0140812,111090.0,111080.0,0.019795]
[1760560226049,5.17971526,111090.0,111080.0,0.019795]
[1760560226296,5.2775411,111090.0,111080.0,0.019795]
[1760560226503,5.17971526,111090.0,111080.0,0.02802422]
[1760560226720,5.20862152,111090.0,111080.0,0.02802422]
[1760560226878,5.02670778,111090.0,111080.0,0.02802422]
[1760560227079,4.99295326,111090.0,111080.0,0.20807463]
[1760560227488,0.15890626,111090.0,111080.0,0.20807463]
[1760560227695,0.14695389,111090.0,111080.0,0.20807463]
[1760560228291,0.01695389,111090.0,111080.0,0.20807463]
[1760560228502,5.67465206,111090.0,111080.0,0.02802422]
[1760560228934,5.20100089,111090.0,111080.0,0.20807463]
[1760560229121,4.97100089,111090.0,111080.0,0.20807463]
[1760560229545,4.97100089,111090.0,111080.0,0.02802422]
[1760560229767,5.65879319,111090.0,111080.0,0.02802422]
[1760560229971,5.74847527,111090.0,111080.0,0.02802422]
[1760560230186,5.0947899,111090.0,111080.0,0.02802422]